bitfinex/quotes_ETHUSD_20260226
["timestamp","ask_amount","ask_price","bid_price","bid_amount"]
[1772075528170,1.45,2052.8,2052.4,0.46872842]
[1772075529877,2.66785075,2052.8,2052.4,0.46872842]
[1772075530237,3.15629466,2052.8,2052.4,0.46872842]
[1772075531667,2.66785075,2052.8,2052.4,0.46872842]
[1772075532866,1.45,2052.8,2052.4,0.46872842]
[1772075534787,1.70621749,2053.0,2052.5,0.46762842]
[1772075534948,2.66972888,2053.1,2052.5,0.46762842]
[1772075535461,3.15817279,2053.1,2052.6,0.46762842]
[1772075536935,3.15817279,2053.1,2052.7,0.0011]
[1772075537143,0.001,2052.9,2052.7,0.0011]
[1772075537586,0.001,2052.9,2052.7,0.46872842]
[1772075539287,1.21878946,2052.9,2052.7,0.46872842]
[1772075539480,1.70723337,2052.9,2052.7,0.0011]
[1772075539699,0.001,2053.2,2052.8,0.46762842]
[1772075539988,0.001,2053.2,2052.7,0.0011]
[1772075539989,0.48944391,2053.2,2052.7,0.0011]
[1772075541694,0.48844391,2053.0,2052.7,0.0011]
[1772075543948,0.48844391,2052.9,2052.7,0.0011]
[1772075546289,1.7062354,2052.9,2052.7,0.0011]
[1772075546480,1.71322723,2052.9,2052.7,0.0011]
[1772075546979,0.49443574,2052.8,2052.7,0.0011]
[1772075547179,0.49443574,2052.8,2052.5,0.0011]
[1772075547370,0.49543574,2052.7,2052.5,0.0011]
[1772075548555,0.001,2052.7,2052.5,0.0011]
[1772075548754,0.001,2052.7,2052.5,0.46097356]
[1772075548955,1.71227154,2052.9,2052.5,0.46097356]
[1772075549166,0.001,2052.8,2052.5,0.46097356]
[1772075549353,0.49543574,2052.8,2052.5,0.46097356]
[1772075550081,0.49443574,2052.8,2052.5,0.46097356]
[1772075550471,0.49443574,2052.8,2052.6,0.0011]
[1772075551196,1.71229805,2052.8,2052.6,0.0011]
[1772075551789,0.49443574,2052.8,2052.6,0.0011]
[1772075552294,1.71229388,2052.8,2052.6,0.0011]
[1772075552799,0.49443574,2052.8,2052.6,0.0011]
[1772075554177,0.001,2052.7,2052.6,0.0011]
[1772075554392,0.48042275,2052.7,2052.6,0.0011]
[1772075555467,0.001,2052.7,2052.6,0.0011]
[1772075560006,1.69729741,2052.8,2052.6,0.0011]
[1772075560206,0.001,2052.7,2052.6,0.0011]
[1772075560706,1.69729741,2052.8,2052.6,0.0011]
[1772075561001,0.001,2052.7,2052.6,0.0011]
[1772075562406,0.48042275,2052.6,2052.3,0.4755137]
[1772075562780,0.48042275,2052.6,2052.2,0.0011]
[1772075562781,0.48142275,2052.6,2052.2,0.4766137]
[1772075563186,0.48142275,2052.6,2052.2,0.0011]
[1772075563394,0.47942275,2052.5,2052.3,0.0011]
[1772075564210,1.69746145,2052.5,2052.3,0.0011]
[1772075567393,0.47942275,2052.4,2052.3,0.0011]
[1772075567991,0.48042275,2052.4,2052.3,0.0011]
[1772075569313,1.69850889,2052.4,2052.3,0.0011]
[1772075569993,1.69850889,2052.4,2052.2,0.0001]
[1772075569994,0.47942275,2052.3,2052.2,0.0001]
[1772075570215,0.47942275,2052.3,2051.7,0.0011]
[1772075570419,3.13743652,2052.4,2051.7,0.0011]
[1772075570420,0.47942275,2052.1,2051.7,0.0011]
[1772075570595,0.47942275,2052.0,2051.7,0.0011]
[1772075572100,0.47942275,2052.0,2051.7,0.4766137]
[1772075572291,1.471,2052.3,2051.8,0.4766137]
[1772075572491,1.95042275,2052.3,2051.8,0.4766137]
[1772075573416,1.471,2052.3,2051.8,0.4766137]
[1772075574727,1.471,2052.3,2052.0,0.0011]
[1772075574929,1.471,2052.3,2052.0,0.4766137]
[1772075575142,0.001,2052.2,2052.0,0.4766137]
[1772075578345,0.48217136,2052.2,2052.0,0.0011]
[1772075578520,0.48117136,2052.1,2051.8,0.0011]
[1772075580027,0.48117136,2051.9,2051.8,0.0011]
[1772075580743,1.69948301,2052.1,2051.8,0.0011]
[1772075581049,0.48117136,2052.0,2051.8,0.0011]
[1772075581240,1.7004162,2052.2,2051.8,0.45469912]
[1772075582060,0.001,2052.2,2051.8,0.45469912]
[1772075582233,0.001,2052.2,2051.9,0.45359912]
[1772075582234,2.69320779,2052.2,2051.9,0.45359912]
[1772075582565,1.475,2052.2,2051.9,0.45359912]
[1772075584636,1.475,2052.2,2052.0,0.45359912]
[1772075585255,0.001,2052.2,2052.0,0.45359912]
[1772075585471,0.48117136,2052.4,2052.0,0.45359912]
[1772075585472,1.475,2052.5,2052.1,0.45359912]
[1772075586839,1.475,2052.5,2052.2,0.45359912]
[1772075589053,0.001,2052.6,2052.5,0.45359912]
[1772075589366,1.21782053,2052.9,2052.5,0.45359912]
[1772075589756,1.69899189,2052.9,2052.5,0.45359912]
[1772075590948,1.21782053,2052.9,2052.5,0.45359912]
[1772075591148,0.48117136,2052.8,2052.5,0.45359912]
[1772075591833,0.48117136,2052.8,2052.1,7.48676735]
[1772075591834,0.48117136,2052.8,2052.3,0.45359912]
[1772075592031,0.48117136,2052.7,2052.1,0.0011]
[1772075592433,0.48117136,2052.7,2052.1,0.45469912]
[1772075593865,1.69913881,2052.6,2052.1,0.45469912]
[1772075597643,1.21796745,2052.6,2052.1,0.45469912]
[1772075597968,1.69913881,2052.6,2052.1,0.45469912]
[1772075598353,0.48117136,2052.5,2052.1,0.45469912]
[1772075600078,0.001,2052.3,2052.1,0.45469912]
[1772075605688,0.48217136,2052.3,2052.1,0.0011]
[1772075606054,0.48217136,2052.3,2051.9,0.0011]
[1772075606055,0.4900205,2052.1,2051.9,0.0011]
[1772075607410,0.4900205,2051.9,2051.7,0.0011]
[1772075607555,1.70846284,2051.8,2051.7,0.0011]
[1772075607762,0.4900205,2051.8,2051.7,0.0011]
[1772075611670,1.70846284,2051.8,2051.7,0.0011]
[1772075611865,0.4900205,2051.7,2051.6,0.0011]
[1772075612094,1.474,2052.1,2051.6,0.0011]
[1772075612385,5.36345812,2052.0,2051.6,0.4701145]
[1772075612596,0.49535059,2051.9,2051.6,0.0011]
[1772075615005,1.71377815,2051.9,2051.6,0.0011]
[1772075616218,2.69230206,2052.1,2051.6,0.48132142]
[1772075616391,3.18765265,2052.1,2051.6,0.48132142]
[1772075616581,3.18765265,2052.1,2051.6,0.0011]
[1772075616582,0.49535059,2052.0,2051.6,0.0011]
[1772075616782,1.71373355,2051.9,2051.6,0.0011]
[1772075617315,1.71373355,2051.9,2051.6,0.48132142]
[1772075617781,1.71373355,2051.9,2051.6,0.0011]
[1772075617979,0.49535059,2051.8,2051.6,0.0011]
[1772075618375,1.21838296,2051.9,2051.6,0.0011]
[1772075618796,1.21838296,2051.9,2051.6,0.48132142]
[1772075620403,1.71371052,2052.0,2051.6,0.48132142]
[1772075620905,1.21835993,2052.0,2051.6,0.48132142]
[1772075621209,1.474,2052.1,2051.7,0.48022142]
[1772075622190,0.001,2052.3,2051.9,0.48022142]
[1772075622584,1.2191461,2052.3,2051.9,0.48022142]
[1772075623483,0.49535059,2052.2,2051.8,0.0011]
[1772075623711,0.49535059,2052.2,2051.8,0.48132142]
[1772075623911,0.001,2051.9,2051.8,0.48132142]
[1772075624515,0.49535059,2052.2,2051.8,0.48132142]
[1772075624516,0.49535059,2052.2,2051.9,0.48022142]
[1772075625696,0.001,2052.3,2052.1,0.48022142]
[1772075625917,0.49535059,2052.6,2051.9,0.48022142]
[1772075625918,0.49535059,2052.4,2051.9,0.48022142]
[1772075629411,1.71349608,2052.3,2051.9,0.48022142]
[1772075631018,0.49535059,2052.3,2051.9,0.48022142]
[1772075635510,1.71349845,2052.3,2052.1,0.0011]
[1772075635702,0.001,2052.2,2052.1,0.0011]
[1772075642345,0.001,2052.2,2052.1,0.49278755]
[1772075643969,0.001,2052.2,2052.1,0.0011]
[1772075646131,1.21920485,2052.2,2052.1,0.0011]
[1772075646457,1.71119602,2052.2,2052.1,0.0011]
[1772075649154,0.49299117,2052.2,2052.1,0.0011]
[1772075650359,3.19099016,2052.6,2052.2,0.49168755]
[1772075650863,0.49199117,2052.5,2052.2,0.49168755]
[1772075651231,1.70994567,2052.7,2052.4,0.49168755]
[1772075651435,2.77161857,2052.6,2052.4,0.49168755]
[1772075651841,2.77161857,2052.6,2052.2,0.49168755]
[1772075652846,3.98961944,2052.6,2052.2,0.49168755]
[1772075653044,1.21800087,2052.6,2052.2,0.49168755]
[1772075653774,1.70994657,2052.7,2052.2,0.49168755]
[1772075655255,0.49199117,2052.7,2052.2,1.21820021]
[1772075655455,1.71072193,2053.0,2052.6,0.49168755]
[1772075656070,0.49299117,2053.0,2052.6,0.49168755]
[1772075657777,1.71072455,2053.0,2052.6,0.49168755]
[1772075659082,0.001,2053.0,2052.7,0.79125635]
[1772075659584,0.001,2053.0,2052.7,0.49168755]
[1772075659783,0.49199117,2052.9,2052.4,0.79125635]
[1772075659952,0.49199117,2052.9,2052.5,0.49168755]
[1772075660569,0.001,2052.8,2052.5,0.49168755]
[1772075661679,0.001,2052.8,2052.6,0.2995688]
[1772075661864,0.001,2052.8,2052.7,0.49168755]
[1772075662572,0.001,2052.8,2052.6,0.79125635]
[1772075663856,0.001,2052.8,2052.7,0.49168755]
[1772075664258,0.49199117,2053.3,2052.7,0.49168755]
[1772075664469,1.70954462,2053.3,2052.9,0.49168755]
[1772075665096,0.49199117,2053.2,2052.9,0.49168755]
[1772075665385,1.70954462,2053.3,2052.9,0.49168755]
[1772075665782,0.45810325,2053.2,2052.6,0.75479057]
[1772075666157,0.45810325,2053.1,2052.6,0.45522177]
[1772075667992,0.45810325,2053.1,2052.6,1.97275647]
[1772075668688,0.45810325,2053.1,2052.7,0.45522177]
[1772075668879,0.45810325,2053.0,2052.7,0.45522177]
[1772075669270,0.45810325,2053.5,2053.0,0.45522177]
[1772075669585,0.45810325,2053.5,2053.1,0.75479057]
[1772075670292,1.67553799,2053.5,2053.1,0.75479057]
[1772075670500,1.21719655,2053.9,2053.3,0.75479057]
[1772075670690,0.45810325,2053.8,2053.3,0.75479057]
[1772075672499,2.70819655,2053.9,2053.3,0.75479057]
[1772075672500,1.69718418,2053.7,2053.3,0.75479057]
[1772075672797,0.4798691,2053.7,2053.3,0.75479057]
[1772075674577,0.4798691,2053.6,2053.1,0.76184076]
[1772075674968,0.4798691,2053.6,2053.2,0.46227196]
[1772075676098,0.4798691,2053.6,2053.1,1.5172372]
[1772075676099,0.4798691,2053.7,2053.4,0.46227196]
[1772075676269,2.70823173,2053.9,2053.4,0.46227196]
[1772075676270,0.4798691,2053.8,2053.4,0.46227196]
[1772075676596,1.69712985,2053.8,2053.4,0.46227196]
[1772075676797,1.67862487,2053.8,2053.4,0.46227196]
[1772075677766,0.4798691,2053.7,2053.4,0.46227196]
[1772075678277,0.4798691,2053.7,2053.3,0.2995688]
[1772075678498,0.4798691,2053.7,2053.1,0.2995688]
[1772075678672,0.4798691,2053.5,2053.1,0.76184076]
[1772075679202,0.4798691,2053.5,2053.2,0.46227196]
[1772075680205,0.4798691,2053.7,2053.2,0.46227196]
[1772075681706,0.4798691,2053.7,2053.1,0.2995688]
[1772075682074,0.4798691,2053.7,2053.1,0.76184076]
[1772075682569,1.69724346,2053.6,2053.2,0.46227196]
[1772075684470,1.69724346,2053.6,2053.2,0.46337196]
[1772075684904,0.001,2053.5,2053.2,0.46337196]
[1772075685287,0.001,2053.5,2053.3,0.46227196]
[1772075687205,0.4808691,2053.5,2053.2,0.0011]
[1772075690617,0.4798691,2053.4,2053.2,0.0011]
[1772075690819,0.4798691,2053.4,2053.0,0.0011]
[1772075691324,0.4798691,2053.2,2053.0,0.0011]
[1772075693395,1.69748485,2053.2,2053.0,0.0011]
[1772075693631,0.4798691,2053.2,2053.0,0.0011]
[1772075698028,1.21753705,2053.4,2053.0,0.48381237]
[1772075698329,1.71240637,2053.4,2053.2,0.0011]
[1772075702333,0.49486932,2053.3,2053.2,0.0011]
[1772075703036,1.71242155,2053.3,2053.2,0.0011]
[1772075709439,0.49486932,2053.2,2053.0,0.0011]
[1772075709650,0.49486932,2053.2,2052.7,0.0011]
[1772075709651,0.49486932,2053.0,2052.7,0.0011]
[1772075709950,1.95996948,2053.1,2052.4,0.0011]
[1772075709951,0.49486932,2052.8,2052.4,0.0011]
[1772075710149,0.49486932,2052.6,2052.4,0.0011]
[1772075710535,0.49486932,2052.6,2052.3,0.0011]
[1772075711116,1.511,2052.7,2052.3,0.48381237]
[1772075711321,3.22383141,2052.7,2052.3,0.48381237]
[1772075713332,0.49486932,2052.6,2052.3,0.48381237]
[1772075713757,1.71284001,2052.6,2052.3,0.48381237]
[1772075713944,0.49486932,2052.5,2052.3,0.0011]
[1772075715346,1.511,2052.7,2052.3,0.48381237]
[1772075715533,2.72892503,2052.7,2052.3,0.48381237]
[1772075715731,3.22379435,2052.7,2052.3,0.48381237]
[1772075715943,1.511,2052.7,2052.3,0.48381237]
[1772075716251,1.511,2052.7,2052.4,0.48271237]
[1772075716451,1.21785206,2052.8,2052.4,0.48271237]
[1772075716452,0.49486932,2052.8,2052.4,0.48271237]
[1772075717355,0.49486932,2052.8,2052.3,0.0011]
[1772075717659,0.49486932,2052.6,2052.3,0.0011]
[1772075718549,0.49486932,2052.6,2052.3,0.48381237]
[1772075720840,0.49486932,2052.8,2052.3,0.48381237]
[1772075722055,0.49486932,2052.8,2052.3,0.0011]
[1772075722261,0.49486932,2052.6,2052.3,0.0011]
[1772075722858,0.49486932,2052.6,2052.3,0.48381237]
[1772075723040,0.49486932,2052.6,2052.5,0.0011]
[1772075725331,1.71283677,2052.6,2052.5,0.0011]
[1772075726443,0.49486932,2052.6,2052.5,0.0011]
[1772075726654,4.87149483,2052.8,2052.5,0.0011]
[1772075726655,1.21787429,2052.8,2052.5,0.48940854]
[1772075727150,1.71667933,2052.8,2052.5,0.48940854]
[1772075727552,2.7298171,2052.9,2052.5,0.48940854]
[1772075727781,1.512,2052.9,2052.6,0.48830854]
[1772075727985,3.22859562,2052.9,2052.6,0.48830854]
[1772075728158,0.49880504,2052.8,2052.5,0.0011]
[1772075728351,2.72979058,2052.9,2052.5,0.48940854]
[1772075728556,0.49880504,2052.8,2052.5,0.48940854]
[1772075729961,1.512,2052.9,2052.5,0.48940854]
[1772075730299,1.512,2052.9,2052.6,0.48830854]
[1772075731444,1.21870673,2053.1,2052.6,0.48830854]
[1772075731639,0.49880504,2053.0,2052.6,0.48830854]
[1772075731844,1.7165945,2052.9,2052.6,0.48830854]
[1772075733861,0.49880504,2052.9,2052.6,0.48830854]
[1772075734057,1.21777522,2053.0,2052.6,0.48830854]
[1772075734464,1.67633998,2053.0,2052.6,0.48830854]
[1772075734990,0.001,2052.8,2052.6,0.48830854]
[1772075736690,0.001,2053.1,2052.7,0.46533853]
[1772075736977,0.001,2053.1,2052.9,0.46533853]
[1772075738586,0.001,2053.5,2053.1,0.46533853]
[1772075738753,0.45856476,2053.4,2052.8,0.46533853]
[1772075739575,0.001,2053.5,2052.8,0.46533853]
[1772075739779,0.45956476,2053.5,2052.9,0.46533853]
[1772075740667,1.6770105,2053.5,2053.0,0.46533853]
[1772075740867,0.45856476,2053.4,2053.0,0.46533853]
[1772075742455,0.001,2054.3,2053.4,0.46533853]
[1772075742688,0.001,2054.3,2053.2,4.04072532]
[1772075742689,0.001,2054.3,2053.8,0.44896948]
[1772075742890,0.45956476,2054.3,2053.7,0.46533853]
[1772075743382,0.45956476,2054.3,2053.5,0.46533853]
[1772075743383,0.45856476,2054.1,2053.5,0.46533853]
[1772075744463,0.45856476,2054.1,2053.5,1.68277119]
[1772075744885,0.45856476,2054.0,2053.5,1.68277119]
[1772075745583,3.19558631,2054.2,2053.6,0.46533853]
[1772075745780,0.45856476,2054.1,2053.6,0.46533853]
[1772075746670,0.45856476,2054.1,2053.5,1.21743266]
[1772075746865,0.45856476,2053.9,2053.5,1.21743266]
[1772075747071,1.21708289,2054.1,2053.5,1.21743266]
[1772075747072,0.45856476,2054.1,2053.6,0.46533853]
[1772075747367,0.45856476,2054.1,2053.4,1.68280112]
[1772075747770,0.45856476,2054.1,2053.5,0.46533853]
[1772075748781,1.52,2054.2,2053.7,0.46533853]
[1772075750889,1.52,2054.2,2053.8,1.21725581]
[1772075751075,1.52,2054.2,2053.9,0.46533853]
[1772075752867,0.45856476,2054.1,2053.3,0.46533853]
[1772075753198,0.45856476,2054.1,2053.4,0.46533853]
[1772075755875,0.45856476,2054.1,2053.3,1.21755223]
[1772075755876,0.49026714,2054.0,2053.5,1.71186992]
[1772075756883,0.49026714,2054.0,2053.3,1.71196749]
[1772075758475,0.49026714,2053.9,2053.2,0.49443628]
[1772075759674,0.49026714,2053.9,2053.7,0.0011]
[1772075760580,0.49026714,2053.8,2053.7,0.0011]
[1772075760776,0.49026714,2053.8,2053.2,0.0011]
[1772075760976,1.21721272,2053.9,2053.2,0.0011]
[1772075760977,0.49026714,2053.6,2053.2,0.0011]
[1772075763203,0.49026714,2053.4,2053.2,0.0011]
[1772075763699,0.49026714,2053.2,2052.6,1.21904233]
[1772075764002,0.49026714,2053.2,2052.7,0.49443628]
[1772075764200,1.21743364,2053.5,2052.6,0.0011]
[1772075764201,0.49026714,2053.0,2052.6,0.0011]
[1772075764503,0.49026714,2053.0,2052.6,0.49553628]
[1772075764812,0.49026714,2053.0,2052.6,0.0011]
[1772075765498,1.515,2053.2,2052.6,0.49553628]
[1772075765701,2.00526714,2053.2,2052.7,0.49443628]
[1772075765997,1.515,2053.2,2052.7,0.49443628]
[1772075766980,0.49026714,2052.9,2052.6,0.0011]
[1772075767297,0.49026714,2053.1,2052.6,0.49553628]
[1772075767492,1.21773015,2053.0,2052.6,0.49553628]
[1772075767692,1.21773015,2053.0,2052.6,0.0011]
[1772075767693,0.49026714,2052.9,2052.6,0.0011]
[1772075767885,1.70798202,2053.1,2052.6,0.49553628]
[1772075768089,0.49026714,2053.0,2052.6,0.49553628]
[1772075769402,0.49026714,2053.0,2052.6,0.0011]
[1772075769904,1.7080566,2052.9,2052.6,0.0011]
[1772075770120,1.21778946,2052.9,2052.6,0.0011]
[1772075770288,0.49026714,2052.8,2052.4,0.0011]
[1772075770800,0.49026714,2052.6,2052.4,0.0011]
[1772075771170,1.21778946,2052.9,2052.5,0.49443628]
[1772075771171,1.515,2052.9,2052.5,0.49443628]
[1772075771890,1.515,2052.9,2052.6,1.71240373]
[1772075772078,1.515,2053.3,2052.8,0.49553628]
[1772075772408,0.001,2053.0,2052.8,0.49553628]
[1772075772808,1.515,2053.4,2052.9,0.49443628]
[1772075773098,2.00526714,2053.4,2052.9,0.49443628]
[1772075774587,2.00526714,2053.4,2052.9,1.71220809]
[1772075775098,3.22276109,2053.4,2052.9,0.49443628]
[1772075775297,2.00526714,2053.4,2052.9,1.71222483]
[1772075778307,2.00526714,2053.4,2053.0,0.49443628]
[1772075778904,2.73249458,2053.4,2052.8,0.0011]
[1772075779103,0.49026714,2053.3,2052.8,1.71338418]
[1772075780112,1.70782818,2053.3,2052.8,0.49553628]
[1772075780315,1.49693375,2053.8,2052.8,0.49553628]
[1772075780316,4.86955007,2053.6,2052.9,0.49443628]
[1772075780493,4.86901166,2053.9,2053.3,0.49443628]
[1772075780494,0.49026714,2053.8,2053.3,0.49443628]
[1772075780694,1.7075236,2053.8,2053.3,0.49443628]
[1772075781315,0.49026714,2053.8,2053.3,0.49443628]
[1772075782183,0.49026714,2053.8,2053.4,0.49443628]
[1772075783705,1.70840477,2054.0,2053.4,0.49443628]
[1772075784009,0.49026714,2053.9,2053.4,0.49443628]
[1772075784385,1.70749116,2053.9,2053.4,0.49443628]
[1772075785096,0.001,2053.6,2053.4,0.49443628]
[1772075785702,0.001,2053.6,2053.2,1.71202172]
[1772075785905,0.001,2053.6,2053.3,0.48565538]
[1772075787698,0.48732338,2053.6,2053.1,0.48675538]
[1772075788717,0.48732338,2053.6,2053.1,0.0011]
[1772075789936,0.48632338,2053.4,2053.1,0.0011]
[1772075790096,0.48632338,2053.5,2053.1,0.48675538]
[1772075791308,0.54717784,2053.6,2053.2,0.48565538]
[1772075791704,0.54717784,2053.6,2053.2,1.70326588]
[1772075792806,0.54717784,2053.6,2053.2,0.48565538]
[1772075793125,1.02126878,2053.6,2053.2,0.48565538]
[1772075793322,0.47409094,2053.5,2053.1,0.0011]
[1772075795828,0.47409094,2053.5,2053.1,0.48298008]
[1772075796201,0.54717784,2053.6,2053.1,0.48298008]
[1772075797414,1.76455584,2053.6,2053.1,0.48298008]
[1772075797622,0.001,2053.3,2053.1,0.48298008]
[1772075797813,0.001,2053.3,2053.1,1.70064678]
[1772075798131,0.001,2053.3,2053.2,0.48188008]
[1772075800027,0.001,2053.3,2053.2,1.69949161]
[1772075800414,0.001,2053.3,2053.2,0.48188008]
[1772075801631,1.69138674,2053.8,2053.3,0.48188008]
[1772075802133,0.47409094,2053.7,2053.3,0.48188008]
[1772075804122,1.21735205,2053.7,2053.2,0.48188008]
[1772075804327,0.47409094,2053.6,2053.2,0.48188008]
[1772075804826,0.47409094,2053.6,2053.3,0.48188008]
[1772075805917,1.21732023,2053.7,2053.3,0.48188008]
[1772075806230,1.69129003,2053.9,2053.5,0.48188008]
[1772075806608,0.47409094,2053.9,2053.5,0.48188008]
[1772075806810,1.69129051,2053.9,2053.5,0.48188008]
[1772075807005,1.69129051,2053.9,2053.3,0.48188008]
[1772075807006,0.47409094,2053.8,2053.3,0.48188008]
[1772075807440,0.47409094,2053.8,2053.1,0.48298008]
[1772075808637,0.47409094,2053.6,2053.2,0.48188008]
[1772075809227,0.47409094,2053.6,2053.3,0.0011]
[1772075809434,0.001,2053.4,2053.3,0.0011]
[1772075809635,0.47509094,2053.4,2053.1,0.0011]
[1772075810611,1.69263099,2053.4,2053.1,0.0011]
[1772075813648,0.47409094,2053.3,2053.1,0.0011]
[1772075817258,0.001,2053.4,2053.2,0.49981314]
[1772075817474,1.514,2053.5,2053.2,0.49981314]
[1772075820554,1.21723736,2053.9,2053.3,0.49981314]
[1772075821059,3.29393813,2053.8,2053.3,0.49981314]
[1772075821261,0.48109159,2053.8,2053.3,0.49981314]
[1772075821559,0.48109159,2053.8,2053.4,0.50091314]
[1772075821859,1.69829077,2053.9,2053.5,0.49981314]
[1772075822069,2.81346202,2053.8,2053.5,0.49981314]
[1772075822234,0.48109159,2053.9,2053.5,0.49981314]
[1772075822555,2.00009159,2054.0,2053.5,0.49981314]
[1772075822742,1.519,2054.0,2053.5,0.49981314]
[1772075822939,1.519,2054.0,2053.6,0.49981314]
[1772075823763,1.52,2054.3,2053.7,0.49981314]
[1772075824135,2.00109159,2054.3,2053.7,0.49981314]
[1772075824359,0.001,2054.3,2053.7,0.49981314]
[1772075824865,0.48209159,2054.3,2053.7,0.49981314]
[1772075825557,0.48209159,2054.3,2053.9,0.49981314]
[1772075826057,0.001,2054.3,2053.9,0.49981314]
[1772075826355,2.7358209,2054.6,2054.0,0.49981314]
[1772075826356,1.519,2054.6,2054.0,0.49981314]
[1772075826534,2.00009159,2054.6,2054.0,0.49981314]
[1772075827265,1.519,2054.6,2054.0,0.49981314]
[1772075827647,1.519,2054.6,2054.2,0.49981314]
[1772075827959,2.73578689,2054.6,2054.2,0.49981314]
[1772075828150,0.48109159,2054.5,2053.6,0.49981314]
[1772075830072,0.48109159,2054.3,2053.8,0.49981314]
[1772075830276,3.2169016,2054.6,2053.8,0.49981314]
[1772075832349,3.2169016,2054.6,2054.0,0.49981314]
[1772075833059,0.48109159,2054.5,2054.0,0.49981314]
[1772075833660,0.001,2054.4,2054.0,0.49981314]
[1772075834059,0.48209159,2054.4,2054.0,0.49981314]
[1772075834266,0.48109159,2054.3,2053.9,0.0011]
[1772075836246,1.21701879,2054.2,2053.9,0.0011]
[1772075836469,0.48109159,2054.1,2053.9,0.0011]
[1772075836806,0.48109159,2054.1,2053.6,0.0011]
[1772075837085,0.48109159,2054.1,2053.4,0.0011]
[1772075837587,0.48109159,2054.1,2053.4,0.50091314]
[1772075838564,0.48109159,2053.9,2053.4,0.0011]
[1772075840696,0.48109159,2053.8,2053.4,0.0011]
[1772075840895,0.48109159,2053.6,2053.4,0.0011]
[1772075842378,1.518,2053.7,2053.4,0.0011]
[1772075842577,1.518,2053.7,2053.4,0.50091314]
[1772075845179,2.73814098,2054.0,2053.5,0.49981314]
[1772075845504,3.23472093,2054.0,2053.5,0.49981314]
[1772075845879,3.23472093,2054.0,2053.6,0.0011]
[1772075846282,0.49757995,2053.7,2053.6,0.0011]
[1772075847309,1.71395431,2053.6,2053.4,0.0011]
[1772075847676,1.21737436,2053.6,2053.4,0.0011]
[1772075848008,0.49657995,2053.5,2053.4,0.0011]
[1772075850104,1.71401359,2053.5,2053.4,0.0011]
[1772075850309,0.49602995,2053.4,2053.1,0.0011]
[1772075854685,0.49602995,2053.3,2053.1,0.0011]
[1772075857891,0.001,2053.2,2053.1,0.0011]
[1772075858997,0.49602995,2053.5,2053.1,0.00904009]
[1772075859200,3.2408918,2053.7,2053.1,0.00904009]
[1772075859925,1.527,2053.7,2053.3,0.00694009]
[1772075861217,2.02352995,2053.7,2053.3,0.00694009]
[1772075861521,3.24084773,2053.7,2053.3,0.00694009]
[1772075862393,2.02352995,2053.7,2053.3,0.00694009]
[1772075863797,2.02352995,2053.7,2053.3,1.22445999]
[1772075864314,1.527,2053.7,2053.4,0.00694009]
[1772075867222,2.02352995,2053.7,2053.2,1.22450773]
[1772075868301,2.02352995,2053.7,2053.3,0.00694009]
[1772075869729,2.02352995,2053.7,2053.3,1.224471]
[1772075870029,1.527,2053.7,2053.4,0.00694009]
[1772075870205,0.001,2053.7,2053.4,0.00694009]
[1772075870927,0.001,2053.5,2053.4,0.00694009]
[1772075871229,0.001,2053.7,2053.5,0.00694009]
[1772075871539,4.86832077,2054.1,2053.5,0.00694009]
[1772075871540,0.49652995,2054.1,2053.5,0.00694009]
[1772075871831,1.528,2054.2,2053.7,0.00694009]
[1772075872334,2.02452995,2054.2,2053.7,0.00694009]
[1772075873629,2.02452995,2054.2,2053.8,1.2241959]
[1772075873929,2.02452995,2054.2,2053.9,0.00694009]
[1772075874231,1.528,2054.2,2053.9,0.00694009]
[1772075875324,0.49752995,2054.4,2053.9,0.00694009]
[1772075876030,1.21790391,2054.4,2053.9,1.21718694]
[1772075876220,0.49652995,2054.3,2053.9,1.21718694]
[1772075876422,0.49652995,2054.3,2053.9,1.22412703]
[1772075877929,0.001,2054.4,2054.0,0.00694009]
[1772075878226,0.49752995,2054.4,2054.0,0.00694009]
[1772075878414,0.49752995,2054.4,2053.8,6.36357718]
[1772075878415,0.49652995,2054.3,2053.8,1.22415439]
[1772075878615,0.49652995,2054.3,2053.9,0.00694009]
[1772075880235,0.001,2054.4,2054.0,0.00694009]
[1772075880728,1.527,2054.6,2054.2,0.00694009]
[1772075880935,0.49752995,2054.8,2054.2,0.00694009]
[1772075881301,0.49652995,2054.7,2054.2,0.00694009]
[1772075881836,0.49652995,2054.7,2054.0,0.00694009]
[1772075882329,0.49652995,2054.6,2054.2,0.00694009]
[1772075883817,0.49652995,2054.6,2054.1,1.21707803]
[1772075884018,0.49652995,2054.7,2054.2,0.00694009]
[1772075884330,0.49652995,2054.7,2054.3,1.22389963]
[1772075885330,0.49752995,2054.8,2054.4,0.00694009]
[1772075885941,0.001,2054.8,2054.4,0.00694009]
[1772075886152,0.49652995,2055.1,2054.6,0.00694009]
[1772075886437,0.49652995,2055.1,2054.7,0.00694009]
[1772075887137,0.49652995,2055.1,2054.6,1.2167432]
[1772075887932,0.49652995,2055.0,2054.3,1.22388348]
[1772075888327,0.49652995,2054.8,2054.3,0.00694009]
[1772075888726,0.49652995,2054.8,2054.3,1.22389009]
[1772075890047,0.49652995,2054.8,2054.3,1.21695]
[1772075890243,0.49652995,2054.8,2054.3,1.22389009]
[1772075890456,0.49652995,2054.8,2054.4,0.00694009]
[1772075890819,0.49652995,2054.7,2054.1,0.00694009]
[1772075893335,0.49652995,2054.6,2054.1,0.00694009]
[1772075894352,0.49652995,2054.6,2054.3,0.001]
[1772075894552,0.49852995,2054.5,2054.3,0.001]
[1772075895667,0.49652995,2054.4,2054.3,0.001]
[1772075895892,0.49652995,2054.4,2054.0,0.001]
[1772075897553,0.49602995,2054.2,2054.0,0.001]
[1772075899846,0.49602995,2054.4,2054.0,1.50373106]
[1772075900048,0.49602995,2054.4,2054.0,1.49579097]
[1772075900246,0.49602995,2054.4,2054.0,0.001]
[1772075900452,1.21884491,2054.5,2054.0,0.001]
[1772075900453,0.49602995,2054.5,2054.0,0.001]
[1772075900848,0.49602995,2054.5,2054.0,0.00894009]
[1772075901058,0.49802995,2054.7,2054.3,0.00794009]
[1772075901837,0.002,2054.7,2054.4,1.21690031]
[1772075902064,0.002,2054.7,2054.4,1.2248404]
[1772075902746,0.002,2054.7,2054.5,0.00794009]
[1772075902949,0.49802995,2054.7,2054.1,1.277]
[1772075903554,0.49802995,2054.7,2054.1,1.28494009]
[1772075903759,0.49602995,2054.6,2054.1,2.50198986]
[1772075904375,0.002,2054.7,2054.2,0.00794009]
[1772075905647,0.49802995,2054.7,2054.3,0.00794009]
[1772075905849,0.49802995,2054.7,2054.1,1.21704977]